fUST/lending_fUST_20251103
["ID","MTS","AMOUNT","RATE_DAILY","PERIOD"]
[392956060,1762175445261,-756.7110459,0.00024602,2]
[392956061,1762175445271,-4928.5620207,0.00024602,2]
[392956062,1762175445280,-712.9679912,0.00024612,2]
[392956063,1762175445289,-160.0,0.00024647,2]
[392956064,1762175445298,-1142.81,0.000249,2]
[392956065,1762175445307,-1029.86080709,0.00024905,2]
[392956066,1762175445316,-1500.0,0.00025,2]
[392956067,1762175445325,-1142.81,0.000251,2]
[392956068,1762175445334,-177.0,0.00025315,2]
[392956069,1762175445343,-1119.48359973,0.000254,2]
[392956070,1762175445354,-23.32640027,0.000254,2]
[392956071,1762175445364,-571.62266635,0.00025697,2]
[392956072,1762175445373,-1500.0,0.000257,2]
[392956073,1762175445382,-1142.81,0.000257,2]
[392956074,1762175445391,-202.36323412,0.00026,2]
[392956077,1762175446542,-310.50567504,0.00024591,2]
[392956078,1762175446551,-4119.44322836,0.00024905,2]
[392956079,1762175446561,-940.44676588,0.00026,2]
[392956080,1762175446570,-1500.0,0.000262,2]
[392956081,1762175446579,-1142.81,0.000262,2]
[392956082,1762175446588,-384.51007731,0.00026248,2]
[392956083,1762175446597,-1142.81,0.000265,2]
[392956084,1762175446606,-508.65,0.0002654,10]
[392956085,1762175446614,-1680.0,0.0002655,2]
[392956086,1762175446623,-266.73,0.00026643,10]
[392956087,1762175446632,-420.0,0.00026653,2]
[392956088,1762175446642,-811.602985,0.00026676,2]
[392956089,1762175446651,-229.0,0.00026774,2]
[392956090,1762175446659,-1142.81,0.000268,2]
[392956091,1762175446668,-1679.56433643,0.0002687,2]
[392956092,1762175446677,-807.2887575,0.00026872,2]
[392956093,1762175446686,-972.52770899,0.00027049,2]
[392956094,1762175446696,-3886.22072514,0.00027049,2]
[392956095,1762175446705,-300.0,0.00027142,30]
[392956096,1762175446714,-300.0,0.00027142,30]
[392956097,1762175446723,-712.9679912,0.00027234,2]
[392956098,1762175446732,-204.0,0.00027315,2]
[392956099,1762175446742,-756.7110459,0.00027318,2]
[392956100,1762175446751,-160.0,0.00027609,2]
[392956101,1762175446761,-423.87,0.00027641,10]
[392956102,1762175446770,-353.23,0.00027641,10]
[392956103,1762175446779,-27719.8863839,0.00027651,2]
[392956104,1762175446788,-204.0,0.00027671,25]
[392956105,1762175446798,-1583.0712513,0.00027792,2]
[392956106,1762175446806,-1099.7108329,0.0002804,2]
[392956107,1762175446816,-260.0,0.00028157,2]
[392956108,1762175446825,-353.2309418,0.00028504,2]
[392956109,1762175446834,-360.0,0.00028705,2]
[392956110,1762175446843,-2351.0,0.00028777,2]
[392956111,1762175446852,-245.3786542,0.00028807,2]
[392956112,1762175446861,-587.0,0.00028887,2]
[392956113,1762175446870,-741.12,0.000291,7]
[392956114,1762175446879,-807.2887575,0.0002921,3]
[392956115,1762175446888,-151.0,0.0002921,30]
[392956116,1762175446898,-151.0,0.0002921,30]
[392956117,1762175446907,-460.0,0.00029253,2]
[392956118,1762175446916,-231.0,0.00029315,2]
[392956119,1762175446925,-151.0,0.00029656,31]
[392956120,1762175446935,-560.0,0.00029801,2]
[392956121,1762175446944,-712.9679912,0.00029856,2]
[392956122,1762175446953,-500.0,0.00029973,5]
[392956123,1762175446962,-27719.8863839,0.0002999,2]
[392956124,1762175446971,-151.0,0.0002999,31]
[392956125,1762175446980,-504.62,0.0003,10]
[392956126,1762175446990,-10307.28287025,0.0003,20]
[392956127,1762175446999,-151.0,0.0003,30]
[392956128,1762175447008,-208.99361,0.00030033,31]
[392956129,1762175447017,-756.7110459,0.00030033,2]
[392956130,1762175447027,-240.0,0.00030349,2]
[392956131,1762175447035,-1000.0,0.00030521,5]
[392956132,1762175447044,-227.136,0.0003078,27]
[392956133,1762175447053,-181.85176047,0.00030913,6]
[392956134,1762175447062,-1000.0,0.00031,15]
[392956135,1762175447071,-849.0,0.00031192,3]
[392956136,1762175447081,-823.0,0.00031307,2]
[392956137,1762175447090,-258.0,0.00031315,2]
[392956138,1762175447099,-807.2887575,0.00031547,4]
[392956139,1762175447108,-500.0,0.00031985,2]
[392956140,1762175447116,-500.0,0.00032,30]
[392956141,1762175447126,-712.9679912,0.00032478,2]
[392956142,1762175447135,-561.2593329,0.00032533,2]
[392956143,1762175447144,-756.7110459,0.00032749,2]
[392956144,1762175447154,-151.0,0.0003279,30]
[392956145,1762175447164,-2153.54700473,0.0003279,2]
[392956212,1762175873309,302.06,0.000328,120]
[392956213,1762175890621,1596.69759211,0.00032,120]
[392956231,1762176105972,161.81,0.00032876,120]
[392956246,1762176429139,-150.0,0.00023111,2]
[392956247,1762176429162,-150.0,0.00023301,2]
[392956248,1762176429189,-288.04,0.00024315,2]
[392956249,1762176429211,-404.18480381,0.00024923,2]
[392956250,1762176429233,-177.0,0.00025301,2]
[392956251,1762176429258,-432.07,0.00025421,2]
[392956252,1762176429282,-576.09,0.00026526,2]
[392956253,1762176429301,-196.07149352,0.00026875,2]
[392956254,1762176429322,-204.0,0.00027301,2]
[392956255,1762176429342,-164.84060245,0.00027495,2]
[392956256,1762176429362,-300.0,0.00027495,2]
[392956257,1762176429380,-50000.0,0.00027496,2]
[392956258,1762176429402,-323.49663468,0.00027536,2]
[392956259,1762176429427,-720.11,0.00027631,2]
[392956260,1762176429452,-500.0,0.00027667,60]
[392956261,1762176429480,-500.0,0.00027667,60]
[392956262,1762176429501,-156.57803,0.00027675,20]
[392956263,1762176429522,-156.57803,0.00028062,20]
[392956264,1762176429542,-163.25,0.000281,2]
[392956265,1762176429564,-156.57803,0.0002845,20]
[392956266,1762176429583,-163.25,0.000285,2]
[392956267,1762176429606,-864.13,0.00028736,2]
[392956268,1762176429626,-163.25,0.00029,2]
[392956269,1762176429646,-5483.0785473,0.00029272,2]
[392956270,1762176429666,-231.0,0.00029301,2]
[392956271,1762176429688,-2420.77869714,0.00029448,2]
[392956272,1762176429708,-163.25,0.000295,2]
[392956273,1762176429727,-420.0,0.0002971,2]
[392956274,1762176429750,-1008.16,0.00029842,2]
[392956275,1762176429770,-163.25,0.000299,2]
[392956276,1762176429789,-163.25,0.000304,2]
[392956277,1762176429808,-323.49663468,0.0003045,3]
[392956278,1762176429827,-163.25,0.000309,2]
[392956279,1762176429851,-1152.18,0.00030947,2]
[392956280,1762176429871,-196.34197262,0.00031301,2]
[392956281,1762176429895,-196.07149352,0.00031723,4]
[392956282,1762176429914,-196.32159881,0.00032,30]
[392956283,1762176429933,-157.90674052,0.00032,7]
[392956284,1762176429957,-1296.2,0.00032052,2]
[392956285,1762176429976,-587.0,0.00032103,2]
[392956286,1762176429995,-4044.17870402,0.000327,2]
[392956287,1762176430016,-294.35,0.0003279,10]
[392956288,1762176430036,-24840.2203953,0.000328,2]
[392956289,1762176430055,-2873.25621548,0.000328,2]
[392956290,1762176430078,-37591.2511929,0.0003281,2]
[392956291,1762176430097,-268.92905272,0.00032877,7]
[392956292,1762176430117,-1741.0,0.00033,2]
[392956293,1762176430136,-220.14911444,0.000331,120]
[392956294,1762176430155,-169.76629371,0.000331,120]
[392956295,1762176430175,-167.2565381,0.000331,120]
[392956296,1762176430197,-189.8315672,0.000331,120]
[392956297,1762176430218,-172.08413866,0.000331,120]
[392956298,1762176430237,-197.72680132,0.000331,120]
[392956299,1762176430257,-387.06337664,0.000331,120]
[392956300,1762176430277,-1370.58361464,0.000331,120]
[392956301,1762176430296,-667.01,0.000331,7]
[392956302,1762176430320,-1440.22,0.00033157,2]
[392956303,1762176430339,-811.602985,0.00033165,2]
[392956304,1762176430358,-24840.2203953,0.00033192,2]
[392956305,1762176430377,-2873.25621548,0.00033192,2]
[392956306,1762176430396,-208.685807,0.00033355,2]
[392956307,1762176430418,-323.49663468,0.00033364,4]
[392956308,1762176430440,-189.8315672,0.000341,120]
[392956309,1762176430460,-172.08413866,0.000341,120]
[392956310,1762176430484,-197.72680132,0.000341,120]
[392956311,1762176430503,-387.06337664,0.000341,120]
[392956312,1762176430524,-1370.58361464,0.000341,120]
[392956313,1762176430544,-823.0,0.0003469,2]
[392956314,1762176430563,-172.72,0.00034813,60]
[392956315,1762176430583,-150.82,0.00034819,60]
[392956316,1762176430605,-172.72,0.00034913,60]
[392956317,1762176430624,-150.82,0.00034919,60]
[392956318,1762176430646,-1374.0,0.0003498,2]
[392956319,1762176430665,-24840.2203953,0.0003499,2]
[392956320,1762176430685,-2873.25621548,0.0003499,2]
[392956321,1762176430706,-151.0,0.0003499,30]
[392956322,1762176430725,-156.0,0.00035,120]
[392956323,1762176430745,-10699.59811704,0.00035,2]
[392956324,1762176430765,-656.77949428,0.00035,2]
[392956325,1762176430782,-4044.71729252,0.00035,120]
[392956326,1762176430802,-6367.76,0.00035,14]
[392956327,1762176430821,-151.0,0.00035,31]
[392956328,1762176430839,-151.0,0.00035,31]
[392956329,1762176430858,-172.73453175,0.00035013,60]
[392956330,1762176430882,-150.82,0.00035019,60]
[392956331,1762176430901,-172.08413866,0.000351,120]
[392956332,1762176431008,-197.72680132,0.000351,120]
[392956333,1762176431033,-387.06337664,0.000351,120]
[392956334,1762176431055,-1370.58361464,0.000351,120]
[392956335,1762176431075,-150.82,0.00035119,60]
[392956336,1762176431095,-150.82,0.00035219,60]
[392956337,1762176431114,-150.82,0.00035319,60]
[392956338,1762176431133,-667.01,0.000354,7]
[392956339,1762176431155,-1223.4401943,0.00035415,2]
[392956340,1762176431174,-150.82,0.00035419,60]
[392956341,1762176431194,-150.82,0.00035519,60]
[392956342,1762176431217,-1374.0,0.00035596,120]
[392956343,1762176431237,-151.0,0.00035616,31]
[392956344,1762176431258,-500.0,0.00035616,120]
[392956345,1762176431278,-500.0,0.00035616,120]
[392956346,1762176431298,-500.0,0.00035616,120]
[392956347,1762176431318,-500.0,0.00035616,120]
[392956348,1762176431337,-500.0,0.00035616,120]
[392956349,1762176431357,-500.0,0.00035616,120]
[392956350,1762176431377,-500.0,0.00035616,120]
[392956351,1762176431397,-500.0,0.00035616,120]
[392956352,1762176431418,-500.0,0.00035616,120]
[392956353,1762176431439,-525.051694,0.00035616,120]
[392956354,1762176431458,-150.82,0.00035619,60]
[392956355,1762176431480,-150.82,0.00035719,60]
[392956356,1762176431500,-150.82,0.00035819,60]
[392956357,1762176431524,-1373.0,0.0003583,2]
[392956358,1762176431544,-835.4213705,0.000359,15]
[392956359,1762176431569,-1374.0,0.00035916,7]
[392956360,1762176431589,-3095.43485313,0.00035916,2]
[392956361,1762176431608,-150.82,0.00035919,60]
[392956362,1762176431629,-151.0,0.0003599,30]
[392956363,1762176431649,-24840.2203953,0.0003599,3]
[392956364,1762176431669,-2873.25621548,0.0003599,3]
[392956365,1762176431691,-2625.83,0.00036,21]
[392956366,1762176431710,-151.0,0.00036,31]
[392956367,1762176431729,-151.0,0.00036,31]
[392956368,1762176431749,-213.901713,0.00036,31]
[392956369,1762176431771,-1373.0,0.00036005,120]
[392956370,1762176431790,-28773.71589951,0.0003601,5]
[392956371,1762176431812,-1373.0,0.00036016,2]
[392956372,1762176431832,-150.82,0.00036019,60]
[392956373,1762176431852,-172.08413866,0.000361,120]
[392956374,1762176431872,-197.72680132,0.000361,120]
[392956375,1762176431892,-387.06337664,0.000361,120]
[392956376,1762176431912,-1370.58361464,0.000361,120]
[392956377,1762176431932,-150.82,0.00036119,60]
[392956378,1762176431952,-3176.0,0.00036121,2]
[392956379,1762176431971,-985.0,0.00036121,2]
[392956380,1762176431990,-627.0,0.00036121,2]
[392956381,1762176432009,-2164.0,0.00036121,2]
[392956382,1762176432030,-277.851,0.00036121,2]
[392956383,1762176432050,-425.746,0.00036121,2]
[392956384,1762176432072,-618.86648667,0.00036167,2]
[392956385,1762176432092,-24840.2203953,0.0003619,3]
[392956386,1762176432112,-2873.25621548,0.0003619,3]
[392956387,1762176432132,-6367.76,0.000362,14]
[392956388,1762176432157,-1373.0,0.00036211,7]
[392956389,1762176432177,-153.648667,0.00036211,31]
[392956390,1762176432197,-151.0,0.00036211,31]
[392956391,1762176432217,-150.82,0.00036219,60]
[392956392,1762176432238,-618.86648667,0.00036267,2]
[392956393,1762176432257,-323.49663468,0.00036277,5]
[392956394,1762176432277,-150.82,0.00036319,60]
[392956395,1762176432296,-270.71670719,0.00036331,16]
[392956396,1762176432317,-618.86648667,0.00036367,2]
[392956397,1762176432337,-150.82,0.00036419,60]
[392956398,1762176432359,-618.86648667,0.00036467,2]
[392956399,1762176432378,-2000.000001,0.000365,30]
[392956400,1762176432398,-200.0,0.00036514,120]
[392956401,1762176432418,-150.0,0.00036516,2]
[392956402,1762176432438,-150.0,0.00036516,2]
[392956403,1762176432458,-150.82,0.00036519,60]
[392956404,1762176432482,-618.86648667,0.00036567,2]
[392956405,1762176432501,-196.26756502,0.0003657,7]
[392956406,1762176432525,-150.82,0.00036619,60]
[392956407,1762176432548,-413.0,0.00036651,2]
[392956408,1762176432568,-618.86648667,0.00036667,2]
[392956409,1762176432590,-1373.0,0.00036699,2]
[392956410,1762176432609,-150.82,0.00036719,60]
[392956411,1762176432631,-413.0,0.00036751,2]
[392956412,1762176432652,-618.86648667,0.00036767,2]
[392956413,1762176432673,-272.9864065,0.00036786,2]
[392956414,1762176432695,-413.0,0.0003679,2]
[392956415,1762176432714,-150.82,0.00036819,60]
[392956416,1762176432735,-413.0,0.00036831,7]
[392956417,1762176432756,-618.86648667,0.00036867,2]
[392956418,1762176432775,-667.01,0.000369,7]
[392956419,1762176432797,-413.0,0.00036903,2]
[392956420,1762176432816,-24840.2203953,0.00036906,3]
[392956421,1762176432835,-2873.25621548,0.00036906,3]
[392956422,1762176432854,-12500.0,0.00036916,10]
[392956423,1762176432873,-150.82,0.00036919,60]
[392956424,1762176432893,-12500.0,0.00036924,10]
[392956425,1762176432913,-12500.0,0.00036933,10]
[392956426,1762176432934,-24840.2203953,0.0003694,3]
[392956427,1762176432953,-2873.25621548,0.0003694,3]
[392956428,1762176432976,-12500.0,0.00036942,10]
[392956429,1762176432996,-24840.2203953,0.0003695,3]
[392956430,1762176433017,-2873.25621548,0.0003695,3]
[392956431,1762176433036,-12500.0,0.00036951,10]
[392956432,1762176433056,-270.877675,0.00036951,31]
[392956433,1762176433075,-12500.0,0.0003696,10]
[392956434,1762176433096,-618.86648666,0.00036967,2]
[392956435,1762176433117,-24840.2203953,0.00036967,3]
[392956436,1762176433137,-2873.25621548,0.00036967,3]
[392956437,1762176433158,-12500.0,0.00036968,10]
[392956438,1762176433179,-12500.0,0.00036977,10]
[392956439,1762176433199,-12500.0,0.00036986,10]
[392956440,1762176433219,-12500.0,0.00036986,10]
[392956441,1762176433239,-12500.0,0.00036986,10]
[392956442,1762176433259,-24840.2203953,0.0003699,3]
[392956443,1762176433358,-2873.25621548,0.0003699,3]
[392956444,1762176433384,-413.0,0.00036993,2]
[392956445,1762176433404,-156.57803,0.00036994,10]
[392956446,1762176433424,-200.0,0.00037,120]
[392956447,1762176433444,-3800.04376203,0.00037,60]
[392956448,1762176433464,-10000.0,0.00037,120]
[392956449,1762176433488,-3719.29,0.00037,14]
[392956450,1762176433510,-151.0,0.00037,16]
[392956451,1762176433531,-156.57803,0.00037,10]
[392956452,1762176433552,-150.82,0.00037019,60]
[392956453,1762176433575,-413.0,0.00037053,120]
[392956454,1762176433596,-156.0,0.000371,120]
[392956455,1762176433619,-2877.0,0.00037105,7]
[392956456,1762176433640,-150.82,0.00037119,60]
[392956457,1762176433662,-413.0,0.00037128,7]
[392956458,1762176433685,-413.0,0.00037141,2]
[392956459,1762176433704,-11566.83722222,0.0003719,2]
[392956460,1762176433724,-2873.25621548,0.0003719,3]
[392956461,1762176433742,-197.72680132,0.000372,120]
[392956462,1762176433762,-387.06337664,0.000372,120]
[392956463,1762176433782,-1370.58361464,0.000372,120]
[392956464,1762176433801,-3719.29,0.000372,14]
[392956465,1762176433820,-150.82,0.00037219,60]
[392956466,1762176433840,-4044.17870397,0.00037263,2]
[392956467,1762176433860,-150.82,0.00037319,60]
[392956468,1762176433883,-200.0,0.00037326,120]
[392956469,1762176433906,-413.0,0.00037347,2]
[392956470,1762176433925,-160.0,0.00037387,3]
[392956471,1762176433945,-6367.76,0.000374,14]
[392956472,1762176433965,-150.82,0.00037419,60]
[392956473,1762176433997,-160.71151012,0.00037456,2]
[392956474,1762176434020,-1152.0,0.00037484,2]
[392956475,1762176434046,-413.0,0.00037491,7]
[392956476,1762176434068,-2000.0,0.000375,60]
[392956477,1762176434089,-195.349652,0.000375,2]
[392956478,1762176434111,-150.82,0.00037519,60]
[392956479,1762176434133,-999.03538103,0.0003753,120]
[392956480,1762176434154,-160.0,0.00037531,20]
[392956481,1762176434176,-3138.0,0.00037531,30]
[392956482,1762176434201,-1620.6847899,0.00037531,60]
[392956488,1762176495700,649.282388,0.00013699,2]
[392956518,1762176632623,-288.0,0.00020187,2]
[392956519,1762176632633,-649.282388,0.00020187,2]
[392956520,1762176632643,-300.0,0.00024898,2]
[392956521,1762176632652,-54.757612,0.00024898,2]
[392956522,1762176632663,-245.242388,0.00024898,2]
[392956523,1762176632672,-209.79492512,0.00024899,2]
[392956544,1762176638473,-194.38987869,0.00024899,2]
[392956546,1762176638482,-17020.43048574,0.00024899,2]
[392956548,1762176638492,-526.33504376,0.00026,2]
[392956550,1762176638501,-19900.0,0.00026,2]
[392956552,1762176638511,-3033.13402803,0.00026576,2]
[392956554,1762176638523,-649.282388,0.00026676,2]
[392956556,1762176638534,-900.0,0.0003,2]
[392956558,1762176638543,-18423.54969825,0.00030235,2]
[392956752,1762176640533,-19484.16884396,0.00030235,2]
[392956754,1762176640542,-3033.13402797,0.00031986,2]
[392956756,1762176640551,-188.25033691,0.00032877,7]
[392956758,1762176640560,-6210.28234386,0.00033,2]
[392956760,1762176640569,-169.76629372,0.000331,120]
[392956762,1762176640579,-167.2565381,0.000331,120]
[392956764,1762176640589,-189.8315672,0.000331,120]
[392956765,1762176640604,-220.14911442,0.000331,120]
[392956767,1762176640613,-649.282388,0.00033165,2]
[392956769,1762176640623,-167.2565381,0.000341,120]
[392956771,1762176640632,-189.8315672,0.000341,120]
[392956773,1762176640641,-220.14911442,0.000341,120]
[392956775,1762176640650,-189.8315672,0.000351,120]
[392956777,1762176640659,-2164.0,0.00036592,2]
[392956779,1762176640668,-538.361,0.00036592,2]
[392956781,1762176640677,-985.0,0.00036592,2]
[392956783,1762176640687,-3033.13402797,0.00037395,2]
[392956785,1762176640696,-157.14937578,0.00037431,120]
[392956787,1762176640705,-204.41,0.0003749,10]
[392956789,1762176640714,-170.34,0.0003749,10]
[392956790,1762176640723,-2835.26755803,0.000375,15]
[392956792,1762176640732,-245.3,0.00037521,10]
[392956794,1762176640741,-150.0,0.00037531,2]
[392956796,1762176640750,-898.39014056,0.00037531,2]
[392956798,1762176640759,-5506.13963354,0.00037531,7]
[392956800,1762176640768,-226.86556858,0.00037531,15]
[392956811,1762176640864,-241.47225024,0.00037531,10]
[392956813,1762176640874,-195.79408777,0.00037531,12]
[392956815,1762176640883,-4463.41281005,0.00037531,8]
[392956817,1762176640893,-1100.4609394,0.00037531,10]
[392956819,1762176640902,-10197.12530797,0.00037531,10]
[392956821,1762176640911,-2504.05636724,0.00037531,7]
[392956823,1762176640920,-1990.85803365,0.00037531,7]
[392956825,1762176640929,-3100.0,0.00037531,7]
[392956827,1762176640938,-200.0,0.00037531,10]
[392956828,1762176640947,-10638.60138847,0.00037531,7]
[392956830,1762176640956,-498.0,0.00037531,7]
[392956832,1762176640965,-18152.96684702,0.00037531,12]
[392956835,1762176640977,-1911.148479,0.00037531,12]
[392957590,1762177371442,363.78472618,0.00037527,60]
[392957695,1762177625143,-156.57803,0.00026173,20]
[392957697,1762177625167,-228.82015786,0.00026262,2]
[392957698,1762177625190,-156.57803,0.00026362,20]
[392957699,1762177625212,-389.23645729,0.00027962,2]
[392957700,1762177625234,-190.67775,0.0003472,5]
[392957701,1762177625255,-404.18480381,0.00034841,2]
[392957702,1762177625277,-400.0,0.00036344,2]
[392957703,1762177625302,-412.0,0.00036345,2]
[392957704,1762177625324,-985.0,0.00036345,2]
[392957705,1762177625344,-276.92477104,0.00036345,2]
[392957787,1762177831775,-150.0,0.00023289,2]
[392957788,1762177831785,-150.0,0.00024398,2]
[392957789,1762177831794,-150.0,0.00025507,2]
[392957790,1762177831802,-172.52,0.00026616,2]
[392957791,1762177831811,-215.65,0.00027725,2]
[392957792,1762177831821,-258.78,0.00028834,2]
[392957793,1762177831829,-301.92,0.00029943,2]
[392957794,1762177831839,-345.05,0.00031052,2]
[392957796,1762177831848,-388.18,0.00032161,2]
[392957798,1762177831857,-431.31,0.0003327,2]
[392957800,1762177831867,-200.0,0.000351,7]
[392957802,1762177831876,-1887.07522896,0.00036345,2]
[392957804,1762177831885,-412.0,0.00036345,2]
[392957806,1762177831894,-150.0,0.00036345,2]
[392957808,1762177831905,-156.57803,0.00036555,2]
[392957810,1762177831914,-1200.0,0.00036899,3]
[392957812,1762177831925,-1895.70876749,0.000369,2]
[392957814,1762177831936,-400.0,0.00036981,3]
[392957817,1762177831945,-400.0,0.00036981,3]
[392957818,1762177831955,-253.0,0.00036985,3]
[392957820,1762177831964,-400.0,0.00036985,2]
[392957822,1762177831974,-11618.81755856,0.00036986,10]
[392957825,1762177831988,-555.11056296,0.00036986,10]
[392957827,1762177832001,-326.07187848,0.00036986,10]
[392957828,1762177832010,-74.15506269,0.00037,7]
[392957829,1762177832025,-343.84493731,0.00037,7]
[392957830,1762177832033,-8144.85372737,0.00037427,2]
[392957844,1762177839873,-862.8,0.00036337,2]
[392957880,1762177842860,-2201.53602931,0.00036337,2]
[392957881,1762177842870,-3195.46397069,0.00037427,2]
[392957882,1762177842881,-958.79902,0.00037427,2]
[392957883,1762177842972,-8113.53237595,0.00037427,2]
[392957885,1762177842981,-449.59497799,0.000375,30]
[392957946,1762177976750,194.5832909,0.00032877,120]
[392957967,1762178357784,4998.8,0.0003287,120]
[392957971,1762178494233,22388.39846533,0.00037527,30]
[392957979,1762178790178,13005.47438137,0.00037527,120]
[392957991,1762178826258,-281.0,0.00019999,2]
[392957992,1762178826280,-79.0,0.0002,7]
[392958016,1762178834986,169.233123,0.00012474,2]
[392958101,1762179031899,-5000.0,0.00019799,2]
[392958102,1762179031909,-168.0,0.00019999,2]
[392958103,1762179031919,-10639.0,0.0002,7]
[392958104,1762179031928,-5000.0,0.0002224,2]
[392958105,1762179031937,-3470.23558401,0.00022465,2]
[392958106,1762179031947,-169.233123,0.00024459,2]
[392958107,1762179031956,-20877.0,0.00025,2]
[392958108,1762179031966,-1658.74517158,0.0002505,2]
[392958109,1762179031975,-500.0,0.0002515,2]
[392958110,1762179031984,-4074.0,0.00025204,2]
[392958111,1762179031995,-471.0,0.00025204,2]
[392958112,1762179032009,-21683.93219639,0.00025204,2]
[392958113,1762179032018,-900.0,0.000265,2]
[392958114,1762179032032,-162.47582102,0.00026721,2]
[392958115,1762179032044,-900.0,0.000275,3]
[392958116,1762179032054,-1000.0,0.000285,4]
[392958117,1762179032063,-281.25,0.0002892,2]
[392958118,1762179032073,-281.25,0.00029268,17]
[392958119,1762179032082,-281.25,0.00029616,32]
[392958120,1762179032091,-281.25,0.00029964,48]
[392958121,1762179032100,-281.25,0.00030312,63]
[392958122,1762179032110,-281.25,0.00030659,79]
[392958123,1762179032119,-1658.74517154,0.00030706,2]
[392958124,1762179032129,-281.25,0.00031007,94]
[392958125,1762179032139,-170.523683,0.00031327,4]
[392958126,1762179032148,-281.25,0.00031355,110]
[392958127,1762179032157,-157.14937578,0.000332,117]
[392958128,1762179032166,-200.00000077,0.000334,2]
[392958129,1762179032175,-412.0,0.00034604,2]
[392958130,1762179032185,-2000.0,0.00035668,15]
[392958131,1762179032194,-169.442516,0.000357,20]
[392958132,1762179032203,-985.0,0.00036345,2]
[392958133,1762179032212,-2164.0,0.00036345,2]
[392958134,1762179032221,-1658.74517154,0.00036362,2]
[392958135,1762179032230,-160.32342459,0.00036627,2]
[392958136,1762179032239,-413.0,0.00036815,120]
[392958137,1762179032248,-500.0,0.00036985,60]
[392958138,1762179032257,-151.0,0.00037,12]
[392958139,1762179032266,-895.0,0.00037,120]
[392958140,1762179032275,-3102.26,0.00037126,17]
[392958141,1762179032284,-413.0,0.00037155,2]
[392958142,1762179032294,-1034.07,0.0003723,18]
[392958143,1762179032304,-162.63829684,0.00037366,7]
[392958144,1762179032313,-160.0,0.00037387,3]
[392958145,1762179032322,-2063.62323542,0.000374,2]
[392958146,1762179032331,-360.0,0.000374,5]
[392958147,1762179032340,-851.75,0.00037406,10]
[392958148,1762179032349,-186301.652965,0.00037416,3]
[392958149,1762179032357,-86648.38499497,0.00037426,2]
[392958190,1762179037835,-6378.15763492,0.00037426,2]
[392958197,1762179037895,-5119.83994963,0.00037426,2]
[392958763,1762179043059,-1457.64552184,0.00037052,2]
[392958765,1762179043069,-2332.15447816,0.00037426,2]
[392958767,1762179043080,-2762.17253001,0.00037426,2]
[392958990,1762179046165,-3924.64822196,0.00037426,2]
[392958992,1762179046176,-1805.64300152,0.00037426,2]
[392959075,1762179397361,19368.0,0.00037524,60]
[392959163,1762179656852,236.0,0.00032877,120]
[392959184,1762179917271,10000.0,0.000184,2]
[392959190,1762179939521,10000.0,0.00018,2]
[392959191,1762179944687,1358.03,0.00018,2]
[392959197,1762179957683,7454.09,0.00018,2]
[392959207,1762180075323,-5000.0,0.00018215,2]
[392959208,1762180075627,-300.0,0.00018399,2]
[392959209,1762180075656,-1032.0,0.00018399,2]
[392959210,1762180079103,-0.01,0.000184,2]
[392959211,1762180082420,-0.02,0.000184,2]
[392959212,1762180082498,-3493.40849,0.000184,2]
[392959213,1762180082614,-3493.44849,0.000184,2]
[392959214,1762180082637,-3013.11302,0.000184,2]
[392959216,1762180086395,-0.01,0.000184,2]